fUSD/lending_fUSD_20240412
["ID","MTS","AMOUNT","RATE_DAILY","PERIOD"]
[322328747,1712956244493,-682.76212765,0.00042997,4]
[322328748,1712956244502,-166.22348436,0.00042998,4]
[322328749,1712956244512,-155.0,0.00042998,4]
[322328750,1712956244522,-175.43329082,0.00042998,2]
[322328751,1712956244532,-2465.34975905,0.00042998,5]
[322328752,1712956244542,-158846.63357889,0.00042998,30]
[322328753,1712956244551,-155.13780993,0.00042998,4]
[322328754,1712956244560,-49855.90434033,0.00042999,4]
[322328755,1712956244570,-151.0,0.00042999,14]
[322328756,1712956244580,-151.0,0.00042999,14]
[322328757,1712956244589,-151.0,0.00042999,14]
[322328758,1712956244598,-151.0,0.00042999,14]
[322328759,1712956244607,-151.0,0.00042999,7]
[322328760,1712956244617,-151.0,0.00042999,7]
[322328761,1712956244626,-151.0,0.00042999,14]
[322328762,1712956244636,-151.0,0.00042999,14]
[322328763,1712956244645,-151.0,0.00042999,14]
[322328764,1712956244654,-151.0,0.00042999,14]
[322328765,1712956244664,-151.0,0.00042999,14]
[322328766,1712956244674,-151.0,0.00042999,14]
[322328767,1712956244684,-151.0,0.00042999,14]
[322328768,1712956244693,-151.0,0.00042999,14]
[322328769,1712956244703,-151.0,0.00042999,14]
[322328770,1712956244712,-151.0,0.00042999,14]
[322328771,1712956244722,-151.0,0.00042999,14]
[322328772,1712956244732,-151.0,0.00042999,7]
[322328773,1712956244742,-198.293503,0.00042999,7]
[322328774,1712956244752,-151.0,0.00042999,14]
[322328775,1712956244761,-151.0,0.00042999,14]
[322328776,1712956244772,-151.0,0.00042999,14]
[322328777,1712956244781,-151.0,0.00042999,14]
[322328778,1712956244790,-151.0,0.00042999,14]
[322328779,1712956244799,-7642.800359,0.00042999,3]
[322328780,1712956244809,-171.05791,0.00042999,14]
[322328781,1712956244818,-171.05791,0.00042999,14]
[322328782,1712956244828,-151.0,0.00042999,14]
[322328783,1712956244837,-151.0,0.00042999,14]
[322328784,1712956244847,-322.51146,0.00042999,14]
[322328785,1712956244856,-322.51146,0.00042999,14]
[322328786,1712956244865,-151.0,0.00042999,14]
[322328787,1712956244874,-151.0,0.00042999,14]
[322328788,1712956244883,-264.243738,0.00042999,14]
[322328789,1712956244892,-151.0,0.00042999,14]
[322328790,1712956244901,-264.243738,0.00042999,14]
[322328791,1712956244910,-151.0,0.00042999,14]
[322328792,1712956244919,-151.0,0.00042999,14]
[322328793,1712956244928,-151.0,0.00042999,14]
[322328794,1712956244937,-151.0,0.00042999,14]
[322328795,1712956244946,-290.71228,0.00042999,14]
[322328796,1712956244955,-151.0,0.00042999,14]
[322328797,1712956244964,-151.0,0.00042999,14]
[322328798,1712956244973,-151.0,0.00042999,14]
[322328799,1712956244982,-151.0,0.00042999,14]
[322328800,1712956244991,-151.0,0.00042999,14]
[322328801,1712956245000,-222.084435,0.00042999,14]
[322328802,1712956245010,-214.738807,0.00042999,14]
[322328803,1712956245020,-222.084435,0.00042999,14]
[322328804,1712956245029,-214.738807,0.00042999,14]
[322328805,1712956245037,-151.0,0.00042999,14]
[322328806,1712956245046,-300.0,0.00042999,2]
[322328807,1712956245055,-300.0,0.00042999,2]
[322328808,1712956245064,-400.0,0.00042999,2]
[322328809,1712956245073,-151.0,0.00042999,14]
[322328810,1712956245082,-401.340129,0.00042999,14]
[322328811,1712956245092,-496.627602,0.00042999,14]
[322328812,1712956245101,-401.340129,0.00042999,14]
[322328813,1712956245109,-496.627602,0.00042999,14]
[322328815,1712956245118,-151.0,0.00042999,14]
[322328817,1712956245127,-151.0,0.00042999,14]
[322328819,1712956245136,-151.0,0.00042999,14]
[322328821,1712956245145,-151.0,0.00042999,14]
[322328823,1712956245153,-900.567219,0.00042999,14]
[322328825,1712956245162,-151.0,0.00042999,14]
[322328826,1712956245171,-900.567219,0.00042999,14]
[322328828,1712956245181,-151.0,0.00042999,14]
[322328829,1712956245190,-336.527194,0.00042999,14]
[322328830,1712956245198,-336.527194,0.00042999,14]
[322328831,1712956245208,-151.0,0.00042999,14]
[322328832,1712956245216,-151.0,0.00042999,14]
[322328833,1712956245225,-151.0,0.00042999,14]
[322328834,1712956245234,-189.299703,0.00042999,14]
[322328835,1712956245243,-189.299703,0.00042999,14]
[322328836,1712956245252,-151.0,0.00042999,14]
[322328837,1712956245261,-315.0,0.00042999,14]
[322328838,1712956245271,-315.0,0.00042999,14]
[322328839,1712956245413,-151.0,0.00042999,14]
[322328840,1712956245423,-244.013115,0.00042999,14]
[322328841,1712956245432,-188.782729,0.00042999,14]
[322328842,1712956245442,-188.782729,0.00042999,14]
[322328843,1712956245451,-151.0,0.00042999,14]
[322328844,1712956245460,-151.0,0.00042999,14]
[322328845,1712956245470,-1111.117458,0.00042999,14]
[322328846,1712956245480,-1111.117458,0.00042999,14]
[322328847,1712956245489,-151.0,0.00042999,14]
[322328848,1712956245498,-151.0,0.00042999,14]
[322328849,1712956245507,-151.0,0.00042999,14]
[322328850,1712956245517,-469.363151,0.00042999,14]
[322328851,1712956245528,-174.022076,0.00042999,14]
[322328852,1712956245537,-469.363151,0.00042999,14]
[322328853,1712956245547,-174.022076,0.00042999,14]
[322328854,1712956245557,-349.71166,0.00042999,14]
[322328855,1712956245566,-151.0,0.00042999,14]
[322328856,1712956245577,-349.71166,0.00042999,14]
[322328857,1712956245586,-151.0,0.00042999,14]
[322328858,1712956245595,-354.803703,0.00042999,14]
[322328859,1712956245605,-354.803703,0.00042999,14]
[322328860,1712956245614,-151.0,0.00042999,7]
[322328861,1712956245624,-151.0,0.00042999,7]
[322328862,1712956245633,-7160497.84831712,0.00043,5]
[322328863,1712956246078,-8474604.20281113,0.00043,5]
[322328864,1712956246089,-150.0,0.00043,30]
[322328865,1712956246099,-16267.19686496,0.00043,5]
[322328866,1712956246109,-558.97497422,0.00043,18]
[322328867,1712956246119,-800.0,0.00043,3]
[322328868,1712956246128,-37503.75747912,0.00043,10]
[322328869,1712956246137,-151.0,0.00043,14]
[322328870,1712956246146,-151.0,0.00043,14]
[322328871,1712956246156,-151.0,0.00043,7]
[322328872,1712956246166,-151.0,0.00043,7]
[322328873,1712956246175,-280.253719,0.00043,14]
[322328874,1712956246185,-151.0,0.00043,14]
[322328875,1712956246194,-231.586893,0.00043,14]
[322328876,1712956246204,-151.0,0.00043,14]
[322328877,1712956246214,-151.0,0.00043,14]
[322328878,1712956246223,-151.0,0.00043,14]
[322328879,1712956246232,-151.0,0.00043,14]
[322328880,1712956246241,-151.0,0.00043,14]
[322328881,1712956246251,-151.0,0.00043,14]
[322328882,1712956246261,-151.0,0.00043,14]
[322328883,1712956246272,-151.0,0.00043,14]
[322328884,1712956246281,-151.0,0.00043,7]
[322328885,1712956246291,-151.0,0.00043,14]
[322328886,1712956246300,-151.0,0.00043,14]
[322328887,1712956246313,-151.0,0.00043,14]
[322328888,1712956246322,-151.0,0.00043,14]
[322328889,1712956246331,-151.842701,0.00043,14]
[322328890,1712956246340,-171.05791,0.00043,14]
[322328891,1712956246351,-171.05791,0.00043,14]
[322328892,1712956246360,-158.31221,0.00043,14]
[322328893,1712956246370,-151.0,0.00043,14]
[322328894,1712956246381,-322.51146,0.00043,14]
[322328895,1712956246390,-322.51146,0.00043,14]
[322328896,1712956246400,-151.0,0.00043,14]
[322328897,1712956246409,-151.0,0.00043,14]
[322328898,1712956246420,-264.243738,0.00043,14]
[322328899,1712956246429,-151.0,0.00043,14]
[322328900,1712956246438,-264.243738,0.00043,14]
[322328901,1712956246448,-151.0,0.00043,14]
[322328902,1712956246458,-151.0,0.00043,14]
[322328903,1712956246467,-151.0,0.00043,14]
[322328904,1712956246477,-151.0,0.00043,14]
[322328905,1712956246486,-151.0,0.00043,14]
[322328906,1712956246495,-151.0,0.00043,14]
[322328907,1712956246505,-151.0,0.00043,14]
[322328908,1712956246515,-151.0,0.00043,14]
[322328909,1712956246526,-151.0,0.00043,14]
[322328910,1712956246536,-222.084435,0.00043,14]
[322328911,1712956246545,-214.738807,0.00043,14]
[322328912,1712956246554,-222.084435,0.00043,14]
[322328913,1712956246563,-214.738807,0.00043,14]
[322328914,1712956246572,-151.0,0.00043,14]
[322328915,1712956246581,-151.0,0.00043,14]
[322328916,1712956246591,-401.340129,0.00043,14]
[322328917,1712956246600,-496.627602,0.00043,14]
[322328918,1712956246609,-401.340129,0.00043,14]
[322328919,1712956246618,-496.627602,0.00043,14]
[322328920,1712956246627,-151.0,0.00043,14]
[322328921,1712956246636,-151.0,0.00043,14]
[322328922,1712956246646,-151.0,0.00043,14]
[322328923,1712956246655,-151.0,0.00043,14]
[322328924,1712956246664,-900.567219,0.00043,14]
[322328925,1712956246826,-151.0,0.00043,14]
[322328926,1712956246837,-900.567219,0.00043,14]
[322328927,1712956246847,-151.0,0.00043,14]
[322328928,1712956246858,-336.527194,0.00043,14]
[322328929,1712956246867,-336.527194,0.00043,14]
[322328930,1712956246876,-151.0,0.00043,14]
[322328931,1712956246885,-151.0,0.00043,14]
[322328932,1712956246894,-151.0,0.00043,14]
[322328933,1712956246903,-189.299703,0.00043,14]
[322328934,1712956246913,-189.299703,0.00043,14]
[322328935,1712956246922,-152.148257,0.00043,14]
[322328936,1712956246931,-315.0,0.00043,14]
[322328937,1712956246941,-315.0,0.00043,14]
[322328938,1712956246951,-151.0,0.00043,14]
[322328939,1712956246960,-188.782729,0.00043,14]
[322328940,1712956246969,-188.782729,0.00043,14]
[322328941,1712956246978,-151.0,0.00043,14]
[322328942,1712956246987,-151.0,0.00043,14]
[322328943,1712956246997,-1111.117458,0.00043,14]
[322328944,1712956247006,-1111.117458,0.00043,14]
[322328945,1712956247015,-151.0,0.00043,14]
[322328946,1712956247025,-151.0,0.00043,14]
[322328947,1712956247034,-469.363151,0.00043,14]
[322328948,1712956247043,-174.022076,0.00043,14]
[322328949,1712956247052,-469.363151,0.00043,14]
[322328950,1712956247062,-174.022076,0.00043,14]
[322328951,1712956247070,-349.71166,0.00043,14]
[322328952,1712956247079,-151.0,0.00043,14]
[322328953,1712956247089,-349.71166,0.00043,14]
[322328954,1712956247097,-180.642169,0.00043,14]
[322328955,1712956247107,-354.803703,0.00043,14]
[322328956,1712956247116,-354.803703,0.00043,14]
[322328957,1712956247125,-151.0,0.00043,7]
[322328958,1712956247134,-167.016987,0.00043,7]
[322328959,1712956247143,-151.0,0.00043,14]
[322328960,1712956247152,-151.0,0.00043,14]
[322328961,1712956247162,-151.0,0.00043,14]
[322328962,1712956247171,-1198.069053,0.00043,14]
[322328963,1712956247180,-290.389759,0.00043,14]
[322328964,1712956247189,-1198.069053,0.00043,14]
[322328965,1712956247197,-190.6817,0.00043,14]
[322328966,1712956247207,-151.0,0.00043,14]
[322328967,1712956247216,-190.6817,0.00043,14]
[322328968,1712956247225,-151.0,0.00043,14]
[322328969,1712956247235,-151.0,0.00043,14]
[322328970,1712956247244,-151.0,0.00043,14]
[322328971,1712956247253,-291.271005,0.00043,14]
[322328972,1712956247262,-291.271005,0.00043,14]
[322328973,1712956247271,-151.0,0.00043,14]
[322328974,1712956247281,-276.037624,0.00043,14]
[322328975,1712956247290,-276.037624,0.00043,14]
[322328976,1712956247299,-365.33422,0.00043,14]
[322328977,1712956247311,-151.0,0.00043,14]
[322328978,1712956247320,-365.33422,0.00043,14]
[322328979,1712956247329,-3143.435192,0.00043,14]
[322328980,1712956247340,-3143.435192,0.00043,14]
[322328981,1712956247349,-224.634369,0.00043,14]
[322328982,1712956247358,-224.634369,0.00043,14]
[322328983,1712956247367,-151.0,0.00043,14]
[322328984,1712956247377,-151.0,0.00043,14]
[322328985,1712956247387,-151.0,0.00043,14]
[322328986,1712956247396,-299.802974,0.00043,2]
[322328987,1712956247405,-299.802974,0.00043,2]
[322328988,1712956247414,-563.415772,0.00043,14]
[322328989,1712956247424,-563.415772,0.00043,14]
[322328990,1712956247433,-151.0,0.00043,14]
[322328991,1712956247442,-151.0,0.00043,14]
[322328992,1712956247453,-307.440756,0.00043,14]
[322328993,1712956247463,-307.440756,0.00043,14]
[322328994,1712956247472,-4516.97693092,0.0004302,2]
[322328995,1712956247481,-1452.28599747,0.00043064,2]
[322328996,1712956247491,-150.0,0.00043125,120]
[322328997,1712956247500,-3101.58067106,0.00043244,2]
[322328998,1712956247509,-151.0,0.00043272,2]
[322328999,1712956247519,-155.38510507,0.00043369,30]
[322329000,1712956247529,-341.8,0.00043381,2]
[322329001,1712956247538,-157.041306,0.00043448,43]
[322329002,1712956247546,-503.06,0.00043507,15]
[322329003,1712956247555,-167.00107984,0.000436,30]
[322329004,1712956247565,-3599.68,0.00043836,2]
[322329005,1712956247574,-1152.75,0.00043836,2]
[322329006,1712956247583,-150.0,0.000439,20]
[322329007,1712956247593,-154.38036986,0.00043963,30]
[322329008,1712956247602,-302.0,0.00043999,4]
[322329009,1712956247612,-150.0,0.00044,90]
[322329010,1712956247622,-5013.84623653,0.00044,2]
[322329011,1712956247631,-285.93602159,0.00044,30]
[322329012,1712956247640,-1573.857659,0.00044,44]
[322329013,1712956247650,-158.75247288,0.00044052,30]
[322329014,1712956247659,-157.03082926,0.00044137,30]
[322329015,1712956247669,-155.61,0.000442,5]
[322329016,1712956247678,-155.61,0.000442,5]
[322329017,1712956247693,-152.0,0.00044238,5]
[322329018,1712956247717,-289.04246357,0.00044244,30]
[322329019,1712956247735,-160.39711652,0.00044345,30]
[322329020,1712956247757,-157.041306,0.00044448,44]
[322329021,1712956247773,-155.38510507,0.00044509,30]
[322329022,1712956247792,-157.03082926,0.0004465,30]
[322329023,1712956247812,-220.33,0.00044701,2]
[322329024,1712956247834,-200.41,0.00044701,2]
[322329025,1712956247855,-604.0,0.00044739,7]
[322329026,1712956247874,-156.67,0.000448,7]
[322329027,1712956247894,-154.86068854,0.00044808,30]
[322329028,1712956247910,-160.87,0.000449,7]
[322329029,1712956247927,-151.44,0.000449,21]
[322329030,1712956247943,-664.08,0.000449,5]
[322329031,1712956247959,-664.08,0.000449,5]
[322329032,1712956247972,-664.08,0.000449,5]
[322329033,1712956247987,-664.08,0.000449,5]
[322329034,1712956248006,-664.08,0.000449,5]
[322329035,1712956248023,-664.08,0.000449,5]
[322329036,1712956248039,-664.08,0.000449,5]
[322329037,1712956248054,-664.08,0.000449,5]
[322329038,1712956248070,-664.08,0.000449,5]
[322329039,1712956248086,-664.08,0.000449,5]
[322329040,1712956248103,-664.08,0.000449,5]
[322329041,1712956248119,-664.08,0.000449,5]
[322329042,1712956248134,-664.08,0.000449,5]
[322329043,1712956248150,-664.08,0.000449,5]
[322329044,1712956248165,-664.08,0.000449,5]
[322329045,1712956248179,-664.08,0.000449,5]
[322329046,1712956248194,-664.08,0.000449,5]
[322329047,1712956248209,-664.08,0.000449,5]
[322329048,1712956248224,-664.08,0.000449,5]
[322329049,1712956248240,-3000.0,0.0004495,25]
[322329050,1712956248255,-10402.76313216,0.00045,5]
[322329051,1712956248269,-170.49660245,0.00045,7]
[322329052,1712956248287,-600.26773387,0.00045,5]
[322329053,1712956248306,-2266.51646007,0.00045,60]
[322329054,1712956248328,-150.0,0.00045,90]
[322329055,1712956248345,-4589.83253269,0.00045,30]
[322329056,1712956248361,-150.0,0.00045,85]
[322329057,1712956248376,-1000.0,0.00045,2]
[322329058,1712956248391,-600.00000099,0.00045,120]
[322329059,1712956248406,-850.0,0.00045,3]
[322329060,1712956248420,-231.2,0.00045,7]
[322329061,1712956248436,-157.03082926,0.00045127,30]
[322329062,1712956248452,-160.26323916,0.00045248,30]
[322329063,1712956248468,-156.67,0.000453,7]
[322329064,1712956248483,-201.0,0.0004534,30]
[322329065,1712956248498,-157.041306,0.00045448,45]
[322329066,1712956248513,-160.39711652,0.00045464,30]
[322329067,1712956248531,-150.0,0.000455,8]
[322329070,1712956248546,-154.4957932,0.00045518,30]
[322329072,1712956248560,-156.82379751,0.00045562,30]
[322329074,1712956248575,-150.0,0.00045634,120]
[322329075,1712956248589,-341.8,0.00045645,2]
[322329076,1712956248605,-150.0,0.00045839,120]
[322329077,1712956248620,-1208.0,0.00045871,30]
[322329078,1712956248635,-10000.0,0.000459,2]
[322329079,1712956248651,-162.9136253,0.000459,60]
[322329082,1712956248666,-5034.85634083,0.0004595,19]
[322329085,1712956248681,-150.0,0.00046,90]
[322329086,1712956248696,-150.0,0.00046,96]
[322329087,1712956248710,-150.0,0.00046,8]
[322329089,1712956248725,-1392.91196333,0.00046109,2]
[322329092,1712956248739,-313462.33556845,0.000462,30]
[322329094,1712956248754,-138137.33168702,0.000462,30]
[322329097,1712956248768,-164.89197639,0.00046234,30]
[322329099,1712956248785,-503.06,0.00046247,15]
[322329102,1712956248802,-160.39711652,0.00046255,30]
[322329105,1712956248817,-5802.16667993,0.00046284,21]
[322329107,1712956248831,-14739.99103678,0.00046295,120]
[322329110,1712956248847,-157.041306,0.00046448,46]
[322329112,1712956248862,-2100.0,0.00046469,30]
[322329113,1712956248877,-150.315,0.00046469,30]
[322329114,1712956248893,-15007.58890127,0.00046491,3]
[322329115,1712956248906,-12441.86466714,0.000465,7]
[322329116,1712956248915,-150.0,0.000465,8]
[322329117,1712956248925,-500.0,0.00046575,30]
[322329118,1712956248934,-500.0,0.00046575,30]
[322329119,1712956248944,-500.0,0.00046575,31]
[322329120,1712956248954,-500.0,0.00046575,31]
[322329121,1712956248963,-496.43660957,0.00046575,31]
[322329122,1712956248972,-496.37878992,0.00046575,31]
[322329123,1712956248982,-225.49192212,0.00046575,31]
[322329124,1712956248991,-500.0,0.00046575,31]
[322329125,1712956249000,-496.88067357,0.00046575,31]
[322329126,1712956249010,-500.0,0.00046575,31]
[322329127,1712956249019,-500.0,0.00046575,31]
[322329128,1712956249029,-500.0,0.00046575,31]
[322329129,1712956249237,-500.0,0.00046575,31]
[322329130,1712956249347,-500.0,0.00046575,31]
[322329131,1712956249369,-500.0,0.00046575,31]
[322329132,1712956249380,-513.73541796,0.00046575,31]
[322329133,1712956249389,-500.0,0.00046575,31]
[322329134,1712956249399,-500.0,0.00046575,31]
[322329135,1712956249408,-500.0,0.00046575,31]
[322329136,1712956249417,-235.2111529,0.00046575,31]
[322329137,1712956249426,-500.0,0.00046575,31]
[322329138,1712956249435,-500.0,0.00046575,31]
[322329139,1712956249444,-515.70703883,0.00046575,31]
[322329140,1712956249454,-500.0,0.00046575,31]
[322329141,1712956249463,-508.7944587,0.00046575,31]
[322329142,1712956249472,-513.85543871,0.00046575,31]
[322329143,1712956249482,-500.0,0.00046575,31]
[322329144,1712956249491,-500.0,0.00046575,31]
[322329145,1712956249500,-500.0,0.00046575,31]
[322329146,1712956249509,-500.0,0.00046575,31]
[322329147,1712956249519,-500.0,0.00046575,31]
[322329148,1712956249529,-500.0,0.00046575,31]
[322329149,1712956249538,-500.35841283,0.00046575,30]
[322329150,1712956249549,-582.218466,0.00046575,31]
[322329151,1712956249558,-226.19410263,0.00046575,2]
[322329152,1712956249568,-500.0,0.00046575,31]
[322329153,1712956249577,-500.0,0.00046575,31]
[322329154,1712956249586,-500.0,0.00046575,31]
[322329155,1712956249595,-298.87299923,0.00046575,31]
[322329156,1712956249605,-622.48747653,0.00046575,31]
[322329157,1712956249614,-500.0,0.00046575,31]
[322329158,1712956249625,-500.0,0.00046575,31]
[322329159,1712956249634,-500.0,0.00046575,31]
[322329160,1712956249643,-187.90780511,0.00046575,31]
[322329161,1712956249653,-500.0,0.00046575,31]
[322329162,1712956249663,-500.0,0.00046575,31]
[322329163,1712956249674,-500.0,0.00046575,31]
[322329164,1712956249683,-500.0,0.00046575,31]
[322329165,1712956249692,-500.0,0.00046575,31]
[322329166,1712956249702,-500.0,0.00046575,31]
[322329167,1712956249711,-500.0,0.00046575,31]
[322329168,1712956249721,-501.33543139,0.00046575,31]
[322329169,1712956249730,-610.25108863,0.00046575,31]
[322329170,1712956249740,-500.0,0.00046575,31]
[322329171,1712956249750,-500.0,0.00046575,31]
[322329172,1712956249760,-500.0,0.00046575,31]
[322329173,1712956249770,-500.0,0.00046575,31]
[322329174,1712956249782,-500.0,0.00046575,31]
[322329175,1712956249791,-200.0,0.00046575,21]
[322329176,1712956249800,-500.0,0.00046575,31]
[322329177,1712956249809,-507.52512095,0.00046575,31]
[322329178,1712956249818,-500.0,0.00046575,31]
[322329179,1712956249829,-500.0,0.00046575,31]
[322329180,1712956249838,-500.0,0.00046575,31]
[322329181,1712956249847,-500.0,0.00046575,31]
[322329182,1712956249857,-500.0,0.00046575,31]
[322329183,1712956249867,-500.0,0.00046575,31]
[322329184,1712956249876,-500.0,0.00046575,31]
[322329185,1712956249886,-387.38036045,0.00046575,31]
[322329186,1712956249895,-500.0,0.00046575,31]
[322329187,1712956249904,-500.0,0.00046575,31]
[322329188,1712956249913,-500.0,0.00046575,31]
[322329189,1712956249923,-500.0,0.00046575,31]
[322329190,1712956249933,-500.0,0.00046575,31]
[322329191,1712956249942,-500.17785671,0.00046575,31]
[322329192,1712956249951,-500.0,0.00046575,31]
[322329193,1712956249960,-500.0,0.00046575,31]
[322329194,1712956249969,-500.0,0.00046575,31]
[322329195,1712956249978,-500.0,0.00046575,31]
[322329196,1712956249987,-500.0,0.00046575,31]
[322329197,1712956249996,-500.0,0.00046575,31]
[322329198,1712956250005,-500.0,0.00046575,31]
[322329199,1712956250014,-500.0,0.00046575,31]
[322329200,1712956250024,-500.0,0.00046575,31]
[322329201,1712956250033,-500.0,0.00046575,31]
[322329202,1712956250043,-500.0,0.00046575,31]
[322329203,1712956250052,-500.0,0.00046575,31]
[322329204,1712956250062,-500.0,0.00046575,31]
[322329205,1712956250071,-500.0,0.00046575,31]
[322329206,1712956250080,-500.0,0.00046575,31]
[322329207,1712956250089,-461.81281629,0.00046575,31]
[322329208,1712956250099,-500.0,0.00046575,31]
[322329209,1712956250108,-500.0,0.00046575,31]
[322329210,1712956250117,-500.0,0.00046575,31]
[322329211,1712956250127,-500.0,0.00046575,31]
[322329212,1712956250136,-500.0,0.00046575,31]
[322329213,1712956250145,-500.0,0.00046575,31]
[322329214,1712956250155,-151.0,0.00046575,14]
[322329215,1712956250164,-500.0,0.00046575,31]
[322329216,1712956250173,-584.36108589,0.00046575,31]
[322329217,1712956250182,-500.0,0.00046575,31]
[322329218,1712956250191,-500.0,0.00046575,31]
[322329219,1712956250200,-500.0,0.00046575,31]
[322329220,1712956250209,-500.0,0.00046575,31]
[322329221,1712956250219,-352.56062164,0.00046575,31]
[322329222,1712956250228,-500.0,0.00046575,31]
[322329223,1712956250237,-500.0,0.00046575,31]
[322329224,1712956250246,-500.0,0.00046575,31]
[322329225,1712956250255,-500.0,0.00046575,31]
[322329226,1712956250264,-500.0,0.00046575,31]
[322329227,1712956250273,-500.0,0.00046575,31]
[322329228,1712956250283,-500.0,0.00046575,31]
[322329229,1712956250295,-500.0,0.00046575,31]
[322329230,1712956250304,-500.0,0.00046575,31]
[322329231,1712956250313,-500.0,0.00046575,31]
[322329232,1712956250322,-500.0,0.00046575,31]
[322329233,1712956250332,-500.0,0.00046575,31]
[322329234,1712956250342,-500.0,0.00046575,31]
[322329235,1712956250351,-500.29685234,0.00046575,31]
[322329236,1712956250361,-500.0,0.00046575,31]
[322329237,1712956250370,-500.0,0.00046575,31]
[322329238,1712956250380,-500.0,0.00046575,31]
[322329239,1712956250389,-510.29901148,0.00046575,31]
[322329240,1712956250399,-500.0,0.00046575,31]
[322329241,1712956250408,-559.13,0.00046575,31]
[322329242,1712956250418,-500.0,0.00046575,31]
[322329243,1712956250427,-500.0,0.00046575,31]
[322329244,1712956250437,-500.0,0.00046575,31]
[322329245,1712956250446,-500.0,0.00046575,31]
[322329246,1712956250456,-500.0,0.00046575,31]
[322329247,1712956250467,-182.14551113,0.00046575,31]
[322329248,1712956250476,-500.0,0.00046575,31]
[322329249,1712956250485,-500.0,0.00046575,31]
[322329250,1712956250494,-500.0,0.00046575,31]
[322329251,1712956250504,-500.0,0.00046575,31]
[322329252,1712956250513,-500.0,0.00046575,31]
[322329253,1712956250523,-500.0,0.00046575,31]
[322329254,1712956250536,-500.0,0.00046575,31]
[322329255,1712956250548,-500.0,0.00046575,31]
[322329256,1712956250557,-500.0,0.00046575,31]
[322329257,1712956250566,-500.0,0.00046575,31]
[322329258,1712956250575,-500.0,0.00046575,31]
[322329259,1712956250584,-511.28463056,0.00046575,31]
[322329260,1712956250593,-500.0,0.00046575,31]
[322329261,1712956250601,-503.94340592,0.00046575,31]
[322329262,1712956250610,-500.0,0.00046575,31]
[322329263,1712956250619,-500.0,0.00046575,31]
[322329264,1712956250628,-500.0,0.00046575,31]
[322329265,1712956250638,-500.0,0.00046575,31]
[322329266,1712956250648,-500.0,0.00046575,31]
[322329267,1712956250658,-515.37464451,0.00046575,31]
[322329268,1712956250667,-502.22093104,0.00046575,31]
[322329269,1712956250677,-500.0,0.00046575,31]
[322329270,1712956250686,-500.0,0.00046575,31]
[322329271,1712956250696,-500.0,0.00046575,31]
[322329272,1712956250706,-546.3,0.00046575,31]
[322329273,1712956250715,-503.57137973,0.00046575,31]
[322329274,1712956250725,-500.0,0.00046575,31]
[322329275,1712956250734,-500.0,0.00046575,31]
[322329276,1712956250744,-500.0,0.00046575,31]